Cogmind - Beta 16 --- EXPLORER MODE // 2025.11.13 @ 12:47:22 Player: K.K.Y. Result: Destroyed by F2-4U8(R) with Subdweller Laser Performance ------------- Evolutions (0) 0 Regions Visited (2) 400 Robots Destroyed (32) 160 Value Destroyed (973) 973 Prototype IDs (12) 240 Alien Tech Used (0) 0 Bonus (0) 0 TOTAL SCORE: 1773 Bonus ------- None Cogmind --------- Core Integrity 0/250 Matter 300/300 Energy 180/180 System Corruption 0% Temperature Cool (6) Movement Rolling (210) Ox10 Location -10/Subcaves Parts ------- > --- POWER (1) -------- Meta Core > --- PROPULSION (3+1) - Subdweller Monowheel > --- UTILITY (2+1) ---- Humpback > --- WEAPON (2+1) ----- Particle Cannon > --- INVENTORY (35) --- Subdweller Power Source Subdweller Power Source Subdweller Power Source Subdweller Power Source Subdweller Power Source Aluminum Leg Humpback Subdweller Optics Subdweller Optics Subdweller Optics Sensor Array Signal Interpreter Signal Interpreter Terrain Scanner ECM Suite EM Pulse Gun Riot Gun Subdweller Laser Subdweller Laser Subdweller Laser Particle Cannon Battle Rifle Subdweller Machine Gun Subdweller Machine Gun Subdweller Machine Gun Subdweller Machine Gun Barrage Gun Barrage Gun Barrage Gun Battle Cannon Grenade Launcher Subdweller Shrapnel Launcher Mining Laser Mining Claw Peak State ------------ > --- POWER ------------ Meta Core > --- PROPULSION ------- Subdweller Monowheel Subdweller Monowheel Subdweller Monowheel > --- UTILITY ---------- Humpback > --- WEAPON ----------- Particle Cannon > --- INVENTORY -------- Subdweller Power Source Subdweller Power Source Subdweller Power Source Subdweller Power Source Subdweller Power Source Aluminum Leg Humpback Subdweller Optics Subdweller Optics Subdweller Optics Sensor Array Signal Interpreter Signal Interpreter Terrain Scanner ECM Suite EM Pulse Gun Riot Gun Subdweller Laser Subdweller Laser Subdweller Laser Particle Cannon Battle Rifle Subdweller Machine Gun Subdweller Machine Gun Subdweller Machine Gun Subdweller Machine Gun Barrage Gun Barrage Gun Barrage Gun Battle Cannon Grenade Launcher Subdweller Shrapnel Launcher Mining Laser Mining Claw [Rating: 29] Favorites ----------- Power Meta Core Engine Ion Engine Power Core Meta Core Propulsion Aluminum Leg Leg Aluminum Leg Wheel Subdweller Monowheel Utility Humpback Device ECM Suite Storage Humpback Weapon Particle Cannon Energy Gun EM Pulse Gun Energy Cannon Particle Cannon Ballistic Gun Light Assault Rifle Build | -11 -10 -10 ------- Run | Yrd Mat Sub Slots Evolved 1 | . 1 . Power . | . . . Propulsion 1 | . 1 . Utility . | . . . Weapon . | . . . Parts Attached 17 | 7 4 6 Power 4 | 1 1 2 Engine 3 | 1 1 1 Core 1 | . . 1 Reactor . | . . . Propulsion 6 | 2 1 3 Treads . | . . . Leg 3 | 2 1 . Wheel 3 | . . 3 Hover . | . . . Flight . | . . . Utility 4 | 2 1 1 Device 1 | 1 . . Storage 3 | 1 1 1 Processor . | . . . Hackware . | . . . Protection . | . . . Artifact . | . . . Weapon 3 | 2 1 . Energy Gun 1 | 1 . . Energy Cannon 1 | . 1 . Ballistic Gun 1 | 1 . . Ballistic Cannon . | . . . Launcher . | . . . Special Weapon . | . . . Impact Weapon . | . . . Slashing Weapon . | . . . Piercing Weapon . | . . . Special Melee Weapon . | . . . Unidentified Prototypes . | . . . Parts Lost 4 | . . 4 Power 1 | . . 1 Propulsion 2 | . . 2 Utility . | . . . Weapon 1 | . . 1 Highest Loss Streak 2 | . . 2 To Critical Strikes 2 | . . 2 Average Backups 17 | 1 4 20 Power 2 | . . 2 Propulsion . | . . . Utility 6 | . 2 6 Weapon 9 | . 2 10 Tool/Special . | . . . Unused Backups 32 | . . 32 Power 5 | . . 5 Propulsion . | . . . Utility 9 | . . 9 Weapon 18 | . . 18 Tool/Special . | . . . Average Slot Usage (%) 68 | . 98 62 Engine 3 | . 12 2 Core 6 | . . 7 Leg 18 | . 36 15 Wheel 6 | . . 7 Device 3 | . 12 2 Storage 9 | . 12 9 Energy Gun 1 | . 7 . Energy Cannon 8 | . 4 9 Ballistic Gun 8 | . 12 7 Peak Build Rating 29 | 7 10 29 Average Rating 19 | 5 8 21 On Entrance 5 | . 7 10 Avg Prop Armor Cover (%) 7 | . . 7 Naked Turns . | . . . Heaviest Build 211 | 18 32 211 Greatest Support 60 | 20 30 60 Greatest Overweight (x) 21 | . 1 21 Average Overweight (x) 4 | . . 5 Largest Inventory Capacity 35 | 10 15 35 Average Capacity 28 | 8 14 31 Most Carried 35 | 5 9 35 Average Carried 18 | 1 4 21 Final Capacity 35 | 10 15 35 Final Carried 35 | 1 9 35 Class Distribution -------------------- 68% | Hauler-Mutant 31% | Hacker-Mutant Dominant Class ---------------- Hacker-Mutant | -10/Materials Hauler-Mutant | -10/Subcaves Resources | -11 -10 -10 ----------- Run | Yrd Mat Sub Matter Collected 477 | 185 141 151 Remotely . | . . . Salvage Created 1118 | . 498 620 Parts 73 | . 32 41 Haulers Intercepted 1 | . 1 . Recyclers Shooed . | . . . Parts Field Recycled . | . . . Retrieved Matter . | . . . Parts Self-Destructed . | . . . Prevented . | . . . Parts Restored . | . . . Kills | -11 -10 -10 ------- Run | Yrd Mat Sub Combat Hostiles Destroyed 25 | . 10 15 Guns 13 | . 9 4 Cannons 9 | . . 9 AOE 1 | . 1 . Classes Destroyed 7 | . 5 2 Worker 2 | . 2 . Hauler 1 | . 1 . Turret 2 | . . 2 Watcher 2 | . 2 . Swarmer 6 | . 4 2 Grunt 7 | . 6 1 Subdweller 12 | . . 12 Best Kill Streak 4 | . 4 4 Combat Bots Only 2 | . 2 2 Max Kills in Single Turn 2 | . 2 1 Gunslinging 1 | . 1 . Exploded 1 | . 1 . Melee . | . . . Uniques/NPCs Destroyed . | . . . Combat | -11 -10 -10 -------- Run | Yrd Mat Sub Hostile Shots Fired 191 | . 41 150 Missed 62 | . 16 46 Hits 129 | . 25 104 Projectile 129 | . 25 104 AOE 1 | . . 1 Critical Strikes 3 | . . 3 Damage Taken 1244 | . 214 1030 Core 253 | . 29 224 Absorbed by Shields . | . . . Ignored by Resistances 745 | . 136 609 Core Remaining (%) 100 | 100 . . Volleys Fired 158 | . 39 119 Largest 2 | . 2 2 Hottest 88 | . 88 88 Shots Fired 281 | . 78 203 Gun 157 | . 73 84 Cannon 124 | . 5 119 Launcher . | . . . Special . | . . . Kinetic 123 | . 39 84 Thermal 124 | . 5 119 Explosive . | . . . Electromagnetic 34 | . 34 . Robot Hit Streak 31 | . 19 31 Robot Miss Streak 2 | . 2 1 Penetration Max . | . . . Secondary Targets 1 | . 1 . Max Gunslinging Chain 1 | . 1 . Shots Hit Robots 156 | . 56 100 Core Hits 55 | . 25 30 Critical Kills 3 | . . 3 Critical Parts Destroyed . | . . . Critical Strikes 3 | . . 3 Meltdown 2 | . . 2 Destroy 1 | . . 1 Melee Attacks . | . . . Impact . | . . . Slashing . | . . . Piercing . | . . . Sneak Attacks . | . . . Combat Hostiles . | . . . Follow-up Attacks . | . . . Damage Inflicted 2363 | . 815 1548 Guns 867 | . 592 275 Cannons 1335 | . 62 1273 Explosions 161 | . 161 . Melee . | . . . Ramming . | . . . Kinetic 475 | . 200 275 Thermal 1465 | . 192 1273 Explosive . | . . . Electromagnetic 423 | . 423 . Impact . | . . . Slashing . | . . . Piercing . | . . . Highest Corruption . | . . . Average Corruption . | . . . Corruption Purged . | . . . Corruption Blocked . | . . . Overload Shots . | . . . Overflow Damage 24 | . 22 2 Projectiles 24 | . 22 2 Explosions . | . . . Melee . | . . . Knockbacks . | . . . Impact . | . . . Kinetic . | . . . Secondary . | . . . Self-Inflicted Damage . | . . . Shots . | . . . Rammed . | . . . Targets Rammed . | . . . Kicked . | . . . Crushed . | . . . Highest Temperature 138 | . 138 60 Average Temperature 20 | . 36 11 Received Heat Transfer 618 | . 162 456 Siege Activations . | . . . Martial Activations . | . . . Shielding Activations . | . . . Robots Disrupted . | . . . Combat Hostiles . | . . . Robots Corrupted . | . . . Combat Hostiles . | . . . Parts Fried 1 | . 1 . Impact Corruptions . | . . . Robots Melted 2 | . . 2 Combat Hostiles 2 | . . 2 Parts Melted 8 | . . 8 Heat Transferred 2505 | . 211 2294 Parts Sabotaged . | . . . Parts Stolen . | . . . Parts Stripped . | . . . Power Chain Reactions 2 | . 2 . Alert | -11 -10 -10 ------- Run | Yrd Mat Sub Maximum Alert Level . | . . . Low Security (%) 100 | 100 100 . Level 1 . | . . . Level 2 . | . . . Level 3 . | . . . Level 4 . | . . . Level 5 . | . . . High Security . | . . . Max Security . | . . . Peak Influence 99 | . 99 . Initial . | . . . Average 16 | . 17 . Influence Increases 465 | . 310 155 Destroy 0b10 Robot/C 300 | . 200 100 Destroy 0b10 Robot/NC 25 | . 25 . Destroy Leader 56 | . 46 10 Successful Hack 9 | . 9 . Disable Machine 24 | . 24 . Destroy Structure 6 | . 6 . Lose Combat Pursuer 45 | . . 45 Influence Decreases 430 | . 310 120 Time Decay 406 | . 286 120 Purge Threat 24 | . 24 . Squads Dispatched . | . . . Investigation . | . . . Extermination . | . . . Reinforcement . | . . . Assault . | . . . Garrison . | . . . Intercept . | . . . Searches Triggered . | . . . Construction Impeded . | . . . Haulers Reinforced . | . . . Active Scanning Responses . | . . . Cargo Convoy Interrupts . | . . . Stealth | -11 -10 -10 --------- Run | Yrd Mat Sub Distress Signals 3 | . 3 . Communications Jammed . | . . . Distress Signals . | . . . Times Spotted 41 | . 20 21 Peak Tracking Total 6 | . 3 6 Tactical Retreats 3 | . 2 1 ECM-based Alert Blocks 2 | . 2 . Traps | -11 -10 -10 ------- Run | Yrd Mat Sub Traps Triggered 4 | . 2 2 Indirectly . | . . . Trap Hack Attempts . | . . . Triggered . | . . . Disarmed . | . . . Reprogrammed 1 | . 1 . Reused . | . . . Traps Extracted . | . . . Installed . | . . . Triggered . | . . . Machines | -11 -10 -10 ---------- Run | Yrd Mat Sub Machines Disabled 7 | . 6 1 Max in Single Turn 2 | . 2 1 Machines Repaired . | . . . Machines Dismantled . | . . . Machines Sabotaged . | . . . Overloaded Fab Kills . | . . . Hacking | -11 -10 -10 --------- Run | Yrd Mat Sub Machines Accessed 4 | . 2 2 Terminals 2 | . 2 . Fabricators . | . . . Repair Stations . | . . . Recycling Units . | . . . Scanalyzers . | . . . Garrison Access . | . . . Total Hacks 26 | . 12 14 Successful 21 | . 7 14 Failed 5 | . 5 . Catastrophic . | . . . Database Lockouts . | . . . Manual 3 | . 3 . Terminals 12 | . 12 . Fabricators . | . . . Repair Stations . | . . . Recycling Units . | . . . Scanalyzers . | . . . Garrison Access . | . . . Terminal Hacks 21 | . 7 14 Record 13 | . . 13 Robot Analysis 1 | . 1 . Branch Access Points 1 | . 1 . Emergency Access Points 1 | . 1 . Unreport Threat 1 | . 1 . Reprogram Traps 1 | . 1 . Zone Layout 2 | . 2 . Proto ID Catalog 1 | . . 1 Fabricator Hacks . | . . . Repair Station Hacks . | . . . Recycling Unit Hacks . | . . . Scanalyzer . | . . . Garrison Access Hacks . | . . . Unauthorized Hacks . | . . . Terminals . | . . . Fabricators . | . . . Repair Stations . | . . . Recycling Units . | . . . Scanalyzers . | . . . Garrison Access . | . . . Data Cores Recovered . | . . . Used . | . . . Hacking Detections 2 | . 2 . Full Trace Events 2 | . 2 . Feedback Events . | . . . Feedback Blocked . | . . . Robot Schematics Acquired . | . . . Robots Built . | . . . Authchips . | . . . Time . | . . . Total Robot Build Rating . | . . . Part Schematics Acquired . | . . . Parts Built . | . . . Authchips . | . . . Time . | . . . Total Part Build Rating . | . . . Part Studies Acquired . | . . . Parts Repaired . | . . . Time . | . . . Parts Recycled . | . . . Recycled Matter . | . . . Retrieved Matter . | . . . Retrieved Components . | . . . Parts Scanalyzed . | . . . Part Schematics Acquired . | . . . Parts Damaged . | . . . Bothacking | -11 -10 -10 ------------ Run | Yrd Mat Sub Used RIF Installer . | . . . Robots Hacked . | . . . Non-combat . | . . . Combat . | . . . Robot Hacks Applied . | . . . Relay Couplers Released . | . . . Fabnet Peak Effective % . | . . . Robots Rewired . | . . . Allies Hacked . | . . . Hacks Repelled . | . . . Allies | -11 -10 -10 -------- Run | Yrd Mat Sub Total Allies . | . . . Largest Group . | . . . Highest-Rated Group . | . . . Highest-Rated Ally . | . . . Total Orders . | . . . Ally Attacks . | . . . Total Damage . | . . . Kills . | . . . Allies Corrupted . | . . . Allies Melted . | . . . Intel | -11 -10 -10 ------- Run | Yrd Mat Sub Active Infowar (turns) 1907 | 51 993 863 ECM 1907 | 51 993 863 Robot Analysis Total 1 | . 1 . Derelict Logs Recovered 3 | . . 3 Drone Launches . | . . . Drone Recoveries . | . . . Exploration | -11 -10 -10 ------------- Run | Yrd Mat Sub Turns Passed 6393 | 75 993 5325 Spaces Moved 2551 | 65 496 1990 Core 23 | 23 . . Treads . | . . . Legs 1124 | 42 496 586 Wheels 1404 | . . 1404 Hover . | . . . Flight . | . . . Fastest Speed 50 | 50 120 120 Average Speed 211 | 95 150 230 Slowest Speed 1590 | 120 190 1590 Overloaded Moves . | . . . Propulsion Burnouts . | . . . Robots Hopped . | . . . Potential Cave-ins . | . . . Cave-ins Triggered . | . . . Exploration Rate (%) 61 | 5 88 91 Regions Visited 2 Branch Regions 1 Pre-discovered Areas 4 | . . 4 Known Exits Taken 2 | 1 1 . Unknown Exits Taken . | . . . Scrap Searched 10 | . . 10 Spaces Dug . | . . . Terrain Destroyed 6 | . 6 . Melee . | . . . Projectile . | . . . AOE 6 | . 6 . Terrain Rammed . | . . . Walls Destroyed . | . . . Machines Disabled . | . . . Actions | -11 -10 -10 --------- Run | Yrd Mat Sub Total 3301 | 77 673 2551 Wait 512 | . 122 390 Move 2549 | 64 495 1990 Hop . | . . . Pick Up 55 | 6 11 38 Fast Attach 3 | 2 . 1 Attach 11 | 5 1 5 Detach 3 | . . 3 Swap 3 | . 3 . Drop 7 | . 2 5 Fire 158 | . 39 119 Melee . | . . . Ram . | . . . Kick . | . . . Crush . | . . . Escape Stasis . | . . . Rewire . | . . . Trap . | . . . Miscellaneous . | . . . Route ------- -11/Scrapyard -10/Materials (discovered 5 exits: *Mat x3 / *Min / *Sub) -10/Subcaves (discovered 4 exits: *Mat x2 / *Rec / [*Scr]) History --------- Turn | Location | Event 3 | -11/Scrapyard | Identified exit to Materials 3 | -11/Scrapyard | Discovered exit to Materials (range 15) 76 | -11/Scrapyard | Entered Materials 76 | -10/Materials | Evolved 1 slot: Propulsion x1 187 | -10/Materials | Identified exit to Materials 187 | -10/Materials | Discovered exit to Materials (range 13) 315 | -10/Materials | Build established: Hacker-Mutant 339 | -10/Materials | Discovered exit to Materials (range 4) 435 | -10/Materials | Identified exit to Mines 583 | -10/Materials | Discovered exit to Materials (range 13) 1060 | -10/Materials | Identified exit to Subcaves 1060 | -10/Materials | Discovered exit to Subcaves (range 4) 1069 | -10/Materials | Entered Subcaves 1070 | -10/Subcaves | Approached by a straggling Scientist 1075 | -10/Subcaves | Learned location of Zion (-6) 1648 | -10/Subcaves | Met a Zionite searching for "candidates" 2011 | -10/Subcaves | Visited 4L-MR0's lab 2034 | -10/Subcaves | Found Meta Core 2037 | -10/Subcaves | Attached Meta Core, gained temporary slots: Propulsion, Utility, Weapon 2325 | -10/Subcaves | Build established: Hauler-Mutant 3636 | -10/Subcaves | Core integrity fell below 50% 4539 | -10/Subcaves | Shifting Twisted Machinery released Mak. Light Armor Plating 4586 | -10/Subcaves | Shifting Twisted Machinery released Sub. Monowheel 5251 | -10/Subcaves | Identified exit to Materials 5251 | -10/Subcaves | Discovered exit to Materials (range 15) 5298 | -10/Subcaves | Discovered exit to Materials (range 12) 5598 | -10/Subcaves | Core integrity fell below 20% 5712 | -10/Subcaves | A swath of the cavern ceiling suddenly collapsed 5820 | -10/Subcaves | Visited Clippyterm 5825 | -10/Subcaves | Learned location of Section 7 (-2) 5825 | -10/Subcaves | Learned Research security intel 5886 | -10/Subcaves | Learned location of 1 exit from Materials 6302 | -10/Subcaves | Identified exit to Recycling 6302 | -10/Subcaves | Discovered exit to Recycling (range 15) 6394 | -10/Subcaves | Destroyed by F2-4U8(R) with Subdweller Laser Last Messages --------------- World map confirmed: -6/Zion. 05863_ Acquired Sub. Monowheel. 05886_ Acquired derelict log, extracted data. Data stored: Materials exits (x1). 05898_ Sub. Monowheel shoots sparks and powers down. 05921_ Dropped Broken Sub. Monowheel. 06022_ Acquired 10 matter. 06160_ A6-S7A(u) tweaks Twisted Machinery. 06177_ Sub. Monowheel shoots sparks and powers down. 06178_ Dropped Broken Sub. Monowheel. 06288_ S-10 Pest destroyed. 06302_ EXIT=FOUND: RECYCLING 06309_ Subatomizers dissect the Lgt. Ion Engine. 06312_ Autobeam Turret destroyed. 06324_ Destroyed Autobeam. 06326_ Autobeam Turret destroyed. 06333_ Subatomizers dissect the Lgt. Ion Engine. Map ----- +----------------------------------------------------+ | ????????????????# #??????????????????? | | ????????????????## ####??????????????????? | | ?????????????????## ##?????????????????????? | | ??????????????????## #??????????????????????? | | ???????????????????## ##?????????????????????? | | ???????????????????## #?????????????????????? | | ???????????????????# #?????????????????????? | | ???????????????????# ###?????????????????????? | | ???????????????????# ##???????????????????????? | | ???????????????????## #????????????????????????? | | ????????????????????## ####?????????????????????? | | ?????????????????????# ## ##???#####????????????? | | ?????????????????????# #### ???????????? | | ?????????????????????# ???????????? | | ?????????????????##### ##??????????????? | | ???????????????### ## R ##???????????????? | | ???????????????# #????????????????? | | ???????????????# #????????????????? | | ???????????????# # ## #????????????????? | | ???????????????## ### ## #????????????????? | | ???????????????## ### ##????????????????? | | ???????????????# #?## #?????????????????? | | ???????????????# #??# [ ##?????????????????? | | ???????????????# #?## =% ####??????????????????? | | ???????????????# #### *%*##?????????????????????? | | ???????????????# ### [%=@#######????????????????? | | ??????????????## =[%* ##???????????????? | | ??????????????# #???????????????? | | ???????????###<# ## ##??????????????? | | ???????????# < #### ###????????????? | | ???????????# < #??## ##???????????? | | ???????????# < ###### #### #???????????? | | ???????????#R #?#" "# ##???????????? | | ???????????#""" # #?# ######????????????? | | ???????????#### #?# % #?????????""#?????? | | ??????????????# ##?#" % "#????????"" #?????? | | ??????????????## ##??#" " " "#????????# ##????? | | ???????????????# ###?#"""" """"#?###????""""#???## | | ??????????????## #?#####>#####?# ##??##"""#???# | | ??????????????# #?????######??# #?## #???# | | ??????????????## ##???## # #### ### #????# | | #?????????????# #???# # #???## | | #####?????????## #?### #??## | | ##?????????### ### #?## #### | | #???????????# ## ### % # ## | | ##??????????## # ## | | #???????????# #### # | | ########????## # ##### ####??########### | | ##????### ##??#####???????????????? | | ## #?????## #??????????????????????? | +----------------------------------------------------+ Best States ------------- Heat Dissipation 25 Energy Generation 17 Energy Capacity 250 Matter Stores 300 Matter Capacity 300 Sight Range 16 Terrain Scan Density 10 ECM Strength 1 Resistance: KI 35 Resistance: TH 35 Resistance: EX 35 Resistance: EM 35 Resistance: I 35 Resistance: S 35 Resistance: P 35 Evasion (%) 55 Offensive Hacking 20 Item Schematics ----------------- None Robot Schematics ------------------ None Fabricated ------------ Nothing Repaired ---------- Nothing Studied --------- None Alien Tech Used ----------------- None Achievements -------------- None Challenges ------------ None Game ------ Seed CoolingUtilityBoregun Manual? 0 Play Time 00:30:59 Cumulative 85.7 hours Start 2025.11.13 @ 12:26:46 End 2025.11.13 @ 12:47:22 Sessions 1 Manual Loads 0 Difficulty Explorer Special Mode None Game No. 85 Rogue 0 Adventurer 0 Explorer 85 Win Type - Total 0 Types 0/0/0/0/0/0/0/0/0/0 Lore% 55 Gallery% 55 Achievement% 43 Wizard Run 0 Options --------- Layout 1 ASCII 0 Keyboard 0 Movement Mouse Keybinds 0 Fullscreen 1 Font 24/Smallcaps Map View 50x35 Zoom Use 0% Tactical HUD 1 Map Filters NONE Filters NONE Steam 1 RUN: 412e4afa-1b23-46a1-b051-919eb85af073